[Event "Titled Tuesday Blitz December 20 Early 2022"]
[White "dropstoneDP"]
[Black "Mekhitarian, Krikor Sevag"]
[BlackFideId "2107660"]
[WhiteElo "3038"]
[BlackElo "2604"]
[Result "1-0"]
[Round "06"]
[TimeControl "180+2"]
[Date "2022.12.20"]
[WhiteClock "0:00:49"]
[BlackClock "0:00:27"]

1. e4 {[%clk 0:03:00]}  c5 {[%clk 0:02:59]} 2. Nf3 {[%clk 0:02:59]}  e6 {[%clk 0:02:58]} 3. d4 {[%clk 0:02:59]}  cxd4 {[%clk 0:02:59]} 4. Nxd4 {[%clk 0:02:59]}  Nc6 {[%clk 0:02:59]} 5. Nc3 {[%clk 0:02:58]}  a6 {[%clk 0:03:00]} 6. Be2 {[%clk 0:02:54]}  Nf6 {[%clk 0:02:59]} 7. Nxc6 {[%clk 0:02:54]}  bxc6 {[%clk 0:02:59]} 8. e5 {[%clk 0:02:54]}  Nd5 {[%clk 0:02:46]} 9. Ne4 {[%clk 0:02:53]}  f5 {[%clk 0:02:46]} 10. exf6 {[%clk 0:02:48]}  Nxf6 {[%clk 0:02:44]} 11. Nd6+ {[%clk 0:02:43]}  Bxd6 {[%clk 0:02:44]} 12. Qxd6 {[%clk 0:02:43]}  Qe7 {[%clk 0:02:31]} 13. Bf4 {[%clk 0:02:43]}  Nd5 {[%clk 0:02:08]} 14. Qxe7+ {[%clk 0:02:32]}  Kxe7 {[%clk 0:02:06]} 15. Bg5+ {[%clk 0:02:33]}  Kf7 {[%clk 0:02:05]} 16. O-O-O {[%clk 0:02:31]}  Nf6 {[%clk 0:01:59]} 17. Rhe1 {[%clk 0:02:17]}  d5 {[%clk 0:01:59]} 18. Bd3 {[%clk 0:02:12]}  Re8 {[%clk 0:01:54]} 19. Bf4 {[%clk 0:02:05]}  c5 {[%clk 0:01:51]} 20. c3 {[%clk 0:01:40]}  Bb7 {[%clk 0:01:50]} 21. Bc2 {[%clk 0:01:34]}  a5 {[%clk 0:01:48]} 22. Ba4 {[%clk 0:01:26]}  Rec8 {[%clk 0:01:27]} 23. Re3 {[%clk 0:01:25]}  Bc6 {[%clk 0:01:26]} 24. Bc2 {[%clk 0:01:24]}  a4 {[%clk 0:01:19]} 25. Rde1 {[%clk 0:01:23]}  Bd7 {[%clk 0:01:17]} 26. Be5 {[%clk 0:01:16]}  Ra6 {[%clk 0:01:12]} 27. h3 {[%clk 0:01:14]}  Rb6 {[%clk 0:01:10]} 28. g4 {[%clk 0:01:12]}  h6 {[%clk 0:00:59]} 29. Rg3 {[%clk 0:01:07]}  Bc6 {[%clk 0:00:42]} 30. g5 {[%clk 0:01:05]}  hxg5 {[%clk 0:00:42]} 31. Rxg5 {[%clk 0:01:06]}  Rh8 {[%clk 0:00:43]} 32. Reg1 {[%clk 0:01:05]}  Ne8 {[%clk 0:00:36]} 33. Bg6+ {[%clk 0:00:56]}  Ke7 {[%clk 0:00:33]} 34. Bxe8 {[%clk 0:00:57]}  Bxe8 {[%clk 0:00:32]} 35. Rxg7+ {[%clk 0:00:57]}  Kf8 {[%clk 0:00:31]} 36. Rc7 {[%clk 0:00:48]}  Rxh3 {[%clk 0:00:27]} 37. Bg7+ {[%clk 0:00:48]}  Kg8 {[%clk 0:00:27]} 38. Bd4+ {[%clk 0:00:49]} 1-0


[Site "https://www.chess.com"]

[Event "Titled Tuesday Blitz December 20 Early 2022"]
[White "emeli_chess"]
[Black "Lim, Seng Hoo"]
[BlackFideId "5800021"]
[WhiteElo "2405"]
[BlackElo "2440"]
[Result "0-1"]
[Round "06"]
[TimeControl "180+2"]
[Date "2022.12.20"]
[WhiteClock "0:00:21"]
[BlackClock "0:00:41"]

1. d4 {[%clk 0:03:00]}  Nf6 {[%clk 0:02:58]} 2. c4 {[%clk 0:03:00]}  g6 {[%clk 0:02:56]} 3. Nc3 {[%clk 0:03:00]}  d5 {[%clk 0:02:56]} 4. cxd5 {[%clk 0:02:59]}  Nxd5 {[%clk 0:02:56]} 5. e4 {[%clk 0:03:00]}  Nxc3 {[%clk 0:02:57]} 6. bxc3 {[%clk 0:03:00]}  Bg7 {[%clk 0:02:57]} 7. Bc4 {[%clk 0:03:01]}  O-O {[%clk 0:02:58]} 8. Ne2 {[%clk 0:03:01]}  c5 {[%clk 0:02:59]} 9. Be3 {[%clk 0:03:00]}  Nc6 {[%clk 0:02:59]} 10. h4 {[%clk 0:02:59]}  cxd4 {[%clk 0:02:54]} 11. cxd4 {[%clk 0:02:59]}  Qa5+ {[%clk 0:02:53]} 12. Kf1 {[%clk 0:02:59]}  Rd8 {[%clk 0:02:47]} 13. h5 {[%clk 0:02:50]}  Qb4 {[%clk 0:02:41]} 14. Rc1 {[%clk 0:02:19]}  Ne5 {[%clk 0:02:38]} 15. Bb3 {[%clk 0:02:10]}  Ng4 {[%clk 0:02:28]} 16. Bd2 {[%clk 0:01:53]}  Qb6 {[%clk 0:02:17]} 17. hxg6 {[%clk 0:01:49]}  hxg6 {[%clk 0:02:16]} 18. Bc3 {[%clk 0:01:38]}  e5 {[%clk 0:02:07]} 19. Qd3 {[%clk 0:01:20]}  exd4 {[%clk 0:02:02]} 20. Bd2 {[%clk 0:01:18]}  Ne5 {[%clk 0:01:57]} 21. Qg3 {[%clk 0:01:15]}  Be6 {[%clk 0:01:56]} 22. Bxe6 {[%clk 0:01:01]}  Qxe6 {[%clk 0:01:56]} 23. Nf4 {[%clk 0:00:54]}  Qxa2 {[%clk 0:01:54]} 24. Bb4 {[%clk 0:00:42]}  Qb2 {[%clk 0:01:50]} 25. Ba3 {[%clk 0:00:34]}  Qb5+ {[%clk 0:01:40]} 26. Kg1 {[%clk 0:00:34]}  Rac8 {[%clk 0:01:31]} 27. Rd1 {[%clk 0:00:30]}  Rc3 {[%clk 0:01:27]} 28. Qg5 {[%clk 0:00:28]}  f6 {[%clk 0:01:20]} 29. Qh4 {[%clk 0:00:25]}  Rxa3 {[%clk 0:01:19]} 30. Ne6 {[%clk 0:00:24]}  Qb3 {[%clk 0:00:58]} 31. Qh7+ {[%clk 0:00:22]}  Kf7 {[%clk 0:00:57]} 32. Nxd8+ {[%clk 0:00:22]}  Ke7 {[%clk 0:00:54]} 33. Rxd4 {[%clk 0:00:21]}  Ra1+ {[%clk 0:00:44]} 34. Kh2 {[%clk 0:00:21]}  Ng4# {[%clk 0:00:41]} 0-1


[Site "https://www.chess.com"]

[Event "Titled Tuesday Blitz December 20 Early 2022"]
[White "gammagramma"]
[Black "Narayanan, Srinath"]
[BlackFideId "5018420"]
[WhiteElo "2716"]
[BlackElo "2559"]
[Result "1/2-1/2"]
[Round "06"]
[TimeControl "180+2"]
[Date "2022.12.20"]
[WhiteClock "0:00:08"]
[BlackClock "0:00:10"]

1. d4 {[%clk 0:03:00]}  d5 {[%clk 0:02:59]} 2. c4 {[%clk 0:03:01]}  dxc4 {[%clk 0:02:59]} 3. Nf3 {[%clk 0:03:02]}  Nf6 {[%clk 0:02:59]} 4. e3 {[%clk 0:03:02]}  e6 {[%clk 0:03:00]} 5. Bxc4 {[%clk 0:03:03]}  a6 {[%clk 0:03:01]} 6. O-O {[%clk 0:03:03]}  c5 {[%clk 0:03:01]} 7. Bb3 {[%clk 0:03:03]}  Nbd7 {[%clk 0:02:52]} 8. Nc3 {[%clk 0:03:02]}  Be7 {[%clk 0:02:48]} 9. dxc5 {[%clk 0:03:02]}  Nxc5 {[%clk 0:02:49]} 10. Qxd8+ {[%clk 0:03:01]}  Bxd8 {[%clk 0:02:50]} 11. Bc2 {[%clk 0:02:59]}  b5 {[%clk 0:02:50]} 12. b4 {[%clk 0:02:59]}  Ncd7 {[%clk 0:02:48]} 13. a4 {[%clk 0:02:59]}  bxa4 {[%clk 0:02:47]} 14. Bxa4 {[%clk 0:02:56]}  Bb7 {[%clk 0:02:46]} 15. Rd1 {[%clk 0:02:55]}  Bc7 {[%clk 0:02:38]} 16. Ba3 {[%clk 0:02:44]}  O-O-O {[%clk 0:02:36]} 17. b5 {[%clk 0:02:22]}  Ne5 {[%clk 0:02:34]} 18. bxa6 {[%clk 0:02:15]}  Nxf3+ {[%clk 0:02:23]} 19. gxf3 {[%clk 0:02:13]}  Bxa6 {[%clk 0:02:24]} 20. Be7 {[%clk 0:02:10]}  Rxd1+ {[%clk 0:02:18]} 21. Rxd1 {[%clk 0:02:11]}  h5 {[%clk 0:02:00]} 22. Bc6 {[%clk 0:01:51]}  Rh6 {[%clk 0:01:55]} 23. Kh1 {[%clk 0:01:35]}  Bb7 {[%clk 0:01:17]} 24. Bxb7+ {[%clk 0:01:33]}  Kxb7 {[%clk 0:01:18]} 25. Rg1 {[%clk 0:01:04]}  Ne8 {[%clk 0:01:13]} 26. Ne4 {[%clk 0:01:02]}  Kc6 {[%clk 0:01:09]} 27. Bf8 {[%clk 0:01:00]}  Rg6 {[%clk 0:00:57]} 28. Rxg6 {[%clk 0:00:58]}  fxg6 {[%clk 0:00:58]} 29. Kg2 {[%clk 0:00:55]}  Be5 {[%clk 0:00:52]} 30. f4 {[%clk 0:00:45]}  Bb2 {[%clk 0:00:45]} 31. h4 {[%clk 0:00:42]}  Nc7 {[%clk 0:00:33]} 32. Ng5 {[%clk 0:00:37]}  Kd7 {[%clk 0:00:31]} 33. Kg3 {[%clk 0:00:34]}  Nd5 {[%clk 0:00:30]} 34. Nf3 {[%clk 0:00:27]}  Ke8 {[%clk 0:00:29]} 35. Bc5 {[%clk 0:00:27]}  Nc3 {[%clk 0:00:26]} 36. Ng5 {[%clk 0:00:22]}  Kd7 {[%clk 0:00:20]} 37. Kf3 {[%clk 0:00:22]}  Nd5 {[%clk 0:00:19]} 38. Ke4 {[%clk 0:00:22]}  Nf6+ {[%clk 0:00:19]} 39. Kf3 {[%clk 0:00:22]}  Ng4 {[%clk 0:00:19]} 40. Ne4 {[%clk 0:00:18]}  Nh6 {[%clk 0:00:18]} 41. Ng3 {[%clk 0:00:17]}  Bf6 {[%clk 0:00:17]} 42. Bd4 {[%clk 0:00:15]}  Bxd4 {[%clk 0:00:17]} 43. exd4 {[%clk 0:00:16]}  Nf5 {[%clk 0:00:16]} 44. Nxf5 {[%clk 0:00:10]}  gxf5 {[%clk 0:00:17]} 45. Ke2 {[%clk 0:00:10]}  Kc6 {[%clk 0:00:17]} 46. Kd2 {[%clk 0:00:10]}  Kb5 {[%clk 0:00:09]} 47. Kc3 {[%clk 0:00:10]}  g6 {[%clk 0:00:09]} 48. Kb3 {[%clk 0:00:10]}  Kc6 {[%clk 0:00:08]} 49. Kc4 {[%clk 0:00:10]}  Kd6 {[%clk 0:00:09]} 50. Kc3 {[%clk 0:00:11]}  Kc6 {[%clk 0:00:09]} 51. Kc4 {[%clk 0:00:11]}  Kd6 {[%clk 0:00:10]} 52. Kc3 {[%clk 0:00:11]}  Kc6 {[%clk 0:00:10]} 53. Kc4 {[%clk 0:00:08]} 1/2-1/2


[Site "https://www.chess.com"]

[Event "Titled Tuesday Blitz December 20 Early 2022"]
[White "guillembaches"]
[Black "Ademi, Sead"]
[BlackFideId "906514"]
[WhiteElo "2464"]
[BlackElo "2168"]
[Result "1-0"]
[Round "06"]
[TimeControl "180+2"]
[Date "2022.12.20"]
[WhiteClock "0:00:09"]
[BlackClock "0:00:12"]

1. e4 {[%clk 0:03:00]}  c5 {[%clk 0:02:57]} 2. Nf3 {[%clk 0:03:01]}  d6 {[%clk 0:02:57]} 3. d4 {[%clk 0:03:01]}  cxd4 {[%clk 0:02:58]} 4. Nxd4 {[%clk 0:03:01]}  Nf6 {[%clk 0:02:58]} 5. Nc3 {[%clk 0:03:02]}  g6 {[%clk 0:02:58]} 6. g3 {[%clk 0:03:01]}  Bg7 {[%clk 0:02:58]} 7. Bg2 {[%clk 0:03:02]}  O-O {[%clk 0:02:55]} 8. O-O {[%clk 0:03:02]}  Nc6 {[%clk 0:02:55]} 9. Nde2 {[%clk 0:03:02]}  Bd7 {[%clk 0:02:51]} 10. h3 {[%clk 0:03:00]}  Rc8 {[%clk 0:02:49]} 11. a4 {[%clk 0:02:58]}  a6 {[%clk 0:02:49]} 12. Kh2 {[%clk 0:02:57]}  Na5 {[%clk 0:02:45]} 13. Nd5 {[%clk 0:02:51]}  Nxd5 {[%clk 0:02:43]} 14. exd5 {[%clk 0:02:51]}  Nc4 {[%clk 0:02:41]} 15. Ra2 {[%clk 0:02:51]}  Nb6 {[%clk 0:02:34]} 16. b3 {[%clk 0:02:35]}  Qc7 {[%clk 0:02:33]} 17. Be3 {[%clk 0:02:26]}  Bf5 {[%clk 0:02:23]} 18. Nd4 {[%clk 0:02:22]}  Bd7 {[%clk 0:02:15]} 19. a5 {[%clk 0:02:16]}  Na8 {[%clk 0:02:12]} 20. c4 {[%clk 0:02:16]}  Qd8 {[%clk 0:02:03]} 21. Re1 {[%clk 0:02:09]}  Nc7 {[%clk 0:02:03]} 22. Rae2 {[%clk 0:02:09]}  Re8 {[%clk 0:01:56]} 23. Qd2 {[%clk 0:02:06]}  Bf6 {[%clk 0:01:33]} 24. h4 {[%clk 0:01:55]}  Bg4 {[%clk 0:01:30]} 25. f3 {[%clk 0:01:48]}  Bd7 {[%clk 0:01:31]} 26. Bg5 {[%clk 0:01:46]}  Bxg5 {[%clk 0:01:25]} 27. hxg5 {[%clk 0:01:45]}  e5 {[%clk 0:01:18]} 28. dxe6 {[%clk 0:01:40]}  Nxe6 {[%clk 0:01:18]} 29. Nxe6 {[%clk 0:01:35]}  Bxe6 {[%clk 0:01:15]} 30. f4 {[%clk 0:01:35]}  Qc7 {[%clk 0:01:11]} 31. Bh3 {[%clk 0:01:26]}  Bd7 {[%clk 0:00:49]} 32. Re7 {[%clk 0:01:23]}  Rxe7 {[%clk 0:00:40]} 33. Rxe7 {[%clk 0:01:21]}  Rd8 {[%clk 0:00:40]} 34. Qd4 {[%clk 0:01:16]}  Re8 {[%clk 0:00:20]} 35. Rxd7 {[%clk 0:00:58]}  Re2+ {[%clk 0:00:20]} 36. Kg1 {[%clk 0:00:48]}  Qxa5 {[%clk 0:00:20]} 37. Bf1 {[%clk 0:00:43]}  Rd2 {[%clk 0:00:16]} 38. Qe3 {[%clk 0:00:20]}  Kg7 {[%clk 0:00:17]} 39. c5 {[%clk 0:00:10]}  dxc5 {[%clk 0:00:12]} 40. Rxd2 {[%clk 0:00:09]} 1-0


[Site "https://www.chess.com"]

[Event "Titled Tuesday Blitz December 20 Early 2022"]
[White "harperchesstt"]
[Black "Manukyan_Artak"]
[WhiteElo "2366"]
[BlackElo "2560"]
[Result "0-1"]
[Round "06"]
[TimeControl "180+2"]
[Date "2022.12.20"]
[WhiteClock "0:00:02"]
[BlackClock "0:00:14"]

1. e3 {[%clk 0:03:00]}  c5 {[%clk 0:02:59]} 2. Nf3 {[%clk 0:02:58]}  d5 {[%clk 0:02:59]} 3. d4 {[%clk 0:02:58]}  Nc6 {[%clk 0:02:59]} 4. c4 {[%clk 0:02:50]}  e6 {[%clk 0:02:56]} 5. Nc3 {[%clk 0:02:49]}  Nf6 {[%clk 0:02:54]} 6. Be2 {[%clk 0:02:48]}  a6 {[%clk 0:02:54]} 7. O-O {[%clk 0:02:48]}  dxc4 {[%clk 0:02:53]} 8. Bxc4 {[%clk 0:02:46]}  b5 {[%clk 0:02:53]} 9. Bd3 {[%clk 0:02:40]}  cxd4 {[%clk 0:02:51]} 10. exd4 {[%clk 0:02:41]}  Be7 {[%clk 0:02:50]} 11. Bg5 {[%clk 0:02:19]}  Bb7 {[%clk 0:02:48]} 12. a3 {[%clk 0:02:04]}  O-O {[%clk 0:02:44]} 13. Bc2 {[%clk 0:02:02]}  b4 {[%clk 0:02:41]} 14. axb4 {[%clk 0:01:58]}  Nxb4 {[%clk 0:02:40]} 15. Bb1 {[%clk 0:01:57]}  Rc8 {[%clk 0:02:18]} 16. Ne5 {[%clk 0:01:46]}  Nbd5 {[%clk 0:02:14]} 17. Qd3 {[%clk 0:01:28]}  g6 {[%clk 0:02:04]} 18. Qh3 {[%clk 0:01:09]}  Nxc3 {[%clk 0:02:01]} 19. bxc3 {[%clk 0:01:09]}  Ne4 {[%clk 0:01:59]} 20. Bxe7 {[%clk 0:00:46]}  Qxe7 {[%clk 0:02:00]} 21. Bxe4 {[%clk 0:00:45]}  Bxe4 {[%clk 0:01:59]} 22. Rxa6 {[%clk 0:00:45]}  Qb7 {[%clk 0:01:42]} 23. Rfa1 {[%clk 0:00:20]}  Qb2 {[%clk 0:01:35]} 24. R6a3 {[%clk 0:00:18]}  Bf5 {[%clk 0:01:28]} 25. Qe3 {[%clk 0:00:18]}  f6 {[%clk 0:01:19]} 26. Nf3 {[%clk 0:00:17]}  Rf7 {[%clk 0:01:16]} 27. h3 {[%clk 0:00:17]}  Rfc7 {[%clk 0:01:15]} 28. g4 {[%clk 0:00:16]}  Bc2 {[%clk 0:01:14]} 29. Qxe6+ {[%clk 0:00:15]}  Kg7 {[%clk 0:01:13]} 30. Ra7 {[%clk 0:00:13]}  Bb3 {[%clk 0:01:09]} 31. Qd6 {[%clk 0:00:12]}  Rf7 {[%clk 0:01:07]} 32. g5 {[%clk 0:00:12]}  fxg5 {[%clk 0:01:06]} 33. Qe5+ {[%clk 0:00:11]}  Kg8 {[%clk 0:01:04]} 34. Ra8 {[%clk 0:00:10]}  Rcf8 {[%clk 0:00:59]} 35. Rxf8+ {[%clk 0:00:09]}  Rxf8 {[%clk 0:00:58]} 36. Ra7 {[%clk 0:00:09]}  Qc1+ {[%clk 0:00:51]} 37. Kg2 {[%clk 0:00:07]}  Bf7 {[%clk 0:00:46]} 38. Nxg5 {[%clk 0:00:04]}  Qxc3 {[%clk 0:00:32]} 39. Nxf7 {[%clk 0:00:04]}  Qc6+ {[%clk 0:00:32]} 40. Kh2 {[%clk 0:00:03]}  Rxf7 {[%clk 0:00:27]} 41. d5 {[%clk 0:00:04]}  Rxf2+ {[%clk 0:00:17]} 42. Kg3 {[%clk 0:00:03]}  Qc3+ {[%clk 0:00:13]} 43. Kxf2 {[%clk 0:00:02]}  Qxe5 {[%clk 0:00:13]} 44. Kf3 {[%clk 0:00:02]}  Qxd5+ {[%clk 0:00:13]} 45. Kf4 {[%clk 0:00:02]}  Qd4+ {[%clk 0:00:13]} 46. Kg5 {[%clk 0:00:03]}  Qxa7 {[%clk 0:00:14]} 47. Kh6 {[%clk 0:00:03]}  Qf7 {[%clk 0:00:13]} 48. Kg5 {[%clk 0:00:04]}  Qf5+ {[%clk 0:00:13]} 49. Kh4 {[%clk 0:00:02]}  Qf4# {[%clk 0:00:14]} 0-1


[Site "https://www.chess.com"]

[Event "Titled Tuesday Blitz December 20 Early 2022"]
[White "kritipatel"]
[Black "fks_stal_mielec"]
[WhiteElo "2085"]
[BlackElo "2284"]
[Result "0-1"]
[Round "06"]
[TimeControl "180+2"]
[Date "2022.12.20"]
[WhiteClock "0:00:24"]
[BlackClock "0:00:45"]

1. e4 {[%clk 0:03:00]}  c5 {[%clk 0:02:58]} 2. d4 {[%clk 0:03:00]}  cxd4 {[%clk 0:02:57]} 3. c3 {[%clk 0:03:01]}  dxc3 {[%clk 0:02:56]} 4. Nxc3 {[%clk 0:03:02]}  Nc6 {[%clk 0:02:56]} 5. Nf3 {[%clk 0:03:02]}  e5 {[%clk 0:02:53]} 6. Bc4 {[%clk 0:03:00]}  Be7 {[%clk 0:02:49]} 7. Qd5 {[%clk 0:02:48]}  d6 {[%clk 0:02:29]} 8. Qxf7+ {[%clk 0:02:41]}  Kd7 {[%clk 0:02:29]} 9. Nb5 {[%clk 0:02:19]}  Qa5+ {[%clk 0:02:22]} 10. Bd2 {[%clk 0:02:14]}  Qa4 {[%clk 0:02:13]} 11. O-O {[%clk 0:01:42]}  Nh6 {[%clk 0:02:05]} 12. Qxg7 {[%clk 0:01:18]}  Qxc4 {[%clk 0:02:00]} 13. Qxh8 {[%clk 0:01:03]}  Qxb5 {[%clk 0:01:53]} 14. Bxh6 {[%clk 0:01:03]}  b6 {[%clk 0:01:51]} 15. Rad1 {[%clk 0:01:00]}  Bb7 {[%clk 0:01:51]} 16. Qxh7 {[%clk 0:00:56]}  Qxb2 {[%clk 0:01:37]} 17. Bg5 {[%clk 0:00:51]}  Re8 {[%clk 0:01:25]} 18. Qf5+ {[%clk 0:00:49]}  Kc7 {[%clk 0:01:19]} 19. Qf7 {[%clk 0:00:46]}  Kd7 {[%clk 0:01:14]} 20. Bxe7 {[%clk 0:00:34]}  Rxe7 {[%clk 0:01:12]} 21. Qf5+ {[%clk 0:00:35]}  Kc7 {[%clk 0:01:11]} 22. Ng5 {[%clk 0:00:35]}  Qxa2 {[%clk 0:01:07]} 23. Ne6+ {[%clk 0:00:34]}  Qxe6 {[%clk 0:01:07]} 24. Qf3 {[%clk 0:00:30]}  Nd4 {[%clk 0:01:03]} 25. Rc1+ {[%clk 0:00:28]}  Kb8 {[%clk 0:01:03]} 26. Qc3 {[%clk 0:00:28]}  Ne2+ {[%clk 0:01:02]} 27. Kh1 {[%clk 0:00:27]}  Nxc3 {[%clk 0:01:02]} 28. Rxc3 {[%clk 0:00:28]}  Bxe4 {[%clk 0:01:02]} 29. Rg3 {[%clk 0:00:28]}  Re8 {[%clk 0:00:59]} 30. h4 {[%clk 0:00:28]}  Rh8 {[%clk 0:00:58]} 31. Kg1 {[%clk 0:00:23]}  Rxh4 {[%clk 0:00:57]} 32. Rc1 {[%clk 0:00:23]}  Rg4 {[%clk 0:00:51]} 33. Rgc3 {[%clk 0:00:19]}  Rxg2+ {[%clk 0:00:50]} 34. Kf1 {[%clk 0:00:20]}  Rg8 {[%clk 0:00:42]} 35. Rc7 {[%clk 0:00:20]}  Bd3+ {[%clk 0:00:38]} 36. Ke1 {[%clk 0:00:20]}  Rg1+ {[%clk 0:00:39]} 37. Kd2 {[%clk 0:00:20]}  Rxc1 {[%clk 0:00:39]} 38. Rxc1 {[%clk 0:00:21]}  Be4 {[%clk 0:00:38]} 39. Kc3 {[%clk 0:00:21]}  Qc8+ {[%clk 0:00:38]} 40. Kb2 {[%clk 0:00:22]}  Qxc1+ {[%clk 0:00:38]} 41. Kxc1 {[%clk 0:00:22]}  d5 {[%clk 0:00:39]} 42. Kd2 {[%clk 0:00:23]}  d4 {[%clk 0:00:40]} 43. Ke2 {[%clk 0:00:23]}  Kc7 {[%clk 0:00:40]} 44. f3 {[%clk 0:00:22]}  d3+ {[%clk 0:00:41]} 45. Kd2 {[%clk 0:00:20]}  Bxf3 {[%clk 0:00:41]} 46. Kxd3 {[%clk 0:00:21]}  e4+ {[%clk 0:00:42]} 47. Ke3 {[%clk 0:00:22]}  b5 {[%clk 0:00:42]} 48. Kd4 {[%clk 0:00:22]}  b4 {[%clk 0:00:43]} 49. Kc4 {[%clk 0:00:22]}  a5 {[%clk 0:00:44]} 50. Kb3 {[%clk 0:00:23]}  Kb6 {[%clk 0:00:44]} 51. Ka4 {[%clk 0:00:24]}  e3 {[%clk 0:00:44]} 52. Kb3 {[%clk 0:00:24]}  e2 {[%clk 0:00:45]} 53. Ka2 {[%clk 0:00:25]}  e1=Q {[%clk 0:00:46]} 54. Kb2 {[%clk 0:00:25]}  Qc3+ {[%clk 0:00:46]} 55. Ka2 {[%clk 0:00:26]}  b3+ {[%clk 0:00:44]} 56. Ka3 {[%clk 0:00:24]}  b2+ {[%clk 0:00:44]} 57. Ka2 {[%clk 0:00:24]}  Bd5+ {[%clk 0:00:45]} 58. Kb1 {[%clk 0:00:25]}  Be4+ {[%clk 0:00:44]} 59. Ka2 {[%clk 0:00:24]}  b1=Q# {[%clk 0:00:45]} 0-1


[Site "https://www.chess.com"]

[Event "Titled Tuesday Blitz December 20 Early 2022"]
[White "manitodeplomo"]
[Black "VitorBronson"]
[WhiteElo "2639"]
[BlackElo "2459"]
[Result "1-0"]
[Round "06"]
[TimeControl "180+2"]
[Date "2022.12.20"]
[WhiteClock "0:00:32"]
[BlackClock "0:00:41"]

1. d4 {[%clk 0:03:00]}  d5 {[%clk 0:02:59]} 2. c4 {[%clk 0:03:00]}  c6 {[%clk 0:02:59]} 3. Nf3 {[%clk 0:03:00]}  Nf6 {[%clk 0:02:59]} 4. Nc3 {[%clk 0:03:00]}  e6 {[%clk 0:02:59]} 5. Bg5 {[%clk 0:02:58]}  Nbd7 {[%clk 0:02:59]} 6. e3 {[%clk 0:02:58]}  Qa5 {[%clk 0:02:59]} 7. Nd2 {[%clk 0:02:58]}  Bb4 {[%clk 0:02:59]} 8. Qc2 {[%clk 0:02:57]}  O-O {[%clk 0:02:59]} 9. Rc1 {[%clk 0:02:52]}  Ne4 {[%clk 0:02:54]} 10. Ndxe4 {[%clk 0:02:45]}  dxe4 {[%clk 0:02:53]} 11. Bh4 {[%clk 0:02:45]}  f5 {[%clk 0:02:52]} 12. a3 {[%clk 0:02:38]}  Bd6 {[%clk 0:02:51]} 13. c5 {[%clk 0:02:33]}  Bb8 {[%clk 0:02:46]} 14. Bc4 {[%clk 0:02:30]}  Nf6 {[%clk 0:02:45]} 15. O-O {[%clk 0:02:29]}  Kh8 {[%clk 0:02:45]} 16. b4 {[%clk 0:02:26]}  Qc7 {[%clk 0:02:44]} 17. Bg3 {[%clk 0:02:25]}  Qf7 {[%clk 0:02:44]} 18. f3 {[%clk 0:02:24]}  Bxg3 {[%clk 0:02:43]} 19. hxg3 {[%clk 0:02:23]}  Qg6 {[%clk 0:02:42]} 20. Kf2 {[%clk 0:02:18]}  Nh5 {[%clk 0:02:37]} 21. Ne2 {[%clk 0:02:16]}  Bd7 {[%clk 0:02:30]} 22. Rh1 {[%clk 0:02:11]}  Rae8 {[%clk 0:02:29]} 23. Rh4 {[%clk 0:02:07]}  e5 {[%clk 0:02:24]} 24. Rch1 {[%clk 0:01:53]}  Nf6 {[%clk 0:02:23]} 25. dxe5 {[%clk 0:01:52]}  Rxe5 {[%clk 0:02:21]} 26. Nf4 {[%clk 0:01:52]}  Qe8 {[%clk 0:02:21]} 27. Qc3 {[%clk 0:01:50]}  g5 {[%clk 0:01:47]} 28. Rxh7+ {[%clk 0:01:09]}  Nxh7 {[%clk 0:01:47]} 29. Qxe5+ {[%clk 0:01:10]}  Qxe5 {[%clk 0:01:44]} 30. Ng6+ {[%clk 0:01:10]}  Kg7 {[%clk 0:01:44]} 31. Nxe5 {[%clk 0:01:09]}  Be8 {[%clk 0:01:40]} 32. f4 {[%clk 0:00:59]}  gxf4 {[%clk 0:01:35]} 33. gxf4 {[%clk 0:01:00]}  Nf6 {[%clk 0:01:34]} 34. Rd1 {[%clk 0:00:58]}  Bh5 {[%clk 0:01:21]} 35. Rd6 {[%clk 0:00:54]}  Ra8 {[%clk 0:01:20]} 36. a4 {[%clk 0:00:53]}  a5 {[%clk 0:01:09]} 37. b5 {[%clk 0:00:50]}  cxb5 {[%clk 0:01:09]} 38. axb5 {[%clk 0:00:51]}  a4 {[%clk 0:01:09]} 39. Rb6 {[%clk 0:00:51]}  Ra7 {[%clk 0:01:07]} 40. Kg3 {[%clk 0:00:44]}  Bd1 {[%clk 0:00:59]} 41. Kh4 {[%clk 0:00:41]}  Bb3 {[%clk 0:00:59]} 42. Kg5 {[%clk 0:00:41]}  Nh7+ {[%clk 0:00:53]} 43. Kxf5 {[%clk 0:00:40]}  Bxc4 {[%clk 0:00:53]} 44. Nxc4 {[%clk 0:00:40]}  a3 {[%clk 0:00:53]} 45. Nxa3 {[%clk 0:00:38]}  Rxa3 {[%clk 0:00:53]} 46. Rxb7+ {[%clk 0:00:38]}  Kg8 {[%clk 0:00:51]} 47. c6 {[%clk 0:00:38]}  Nf8 {[%clk 0:00:45]} 48. c7 {[%clk 0:00:34]}  Rc3 {[%clk 0:00:45]} 49. b6 {[%clk 0:00:34]}  Nd7 {[%clk 0:00:43]} 50. Rb8+ {[%clk 0:00:34]}  Kf7 {[%clk 0:00:42]} 51. c8=Q {[%clk 0:00:33]}  Rxc8 {[%clk 0:00:41]} 52. Rxc8 {[%clk 0:00:34]}  Nxb6 {[%clk 0:00:42]} 53. Rc7+ {[%clk 0:00:33]}  Kf8 {[%clk 0:00:42]} 54. Kxe4 {[%clk 0:00:33]}  Nd5 {[%clk 0:00:41]} 55. Kxd5 {[%clk 0:00:32]} 1-0


[Site "https://www.chess.com"]

[Event "Titled Tuesday Blitz December 20 Early 2022"]
[White "maurovargas01"]
[Black "Zampronha, Wladimir Camilo"]
[BlackFideId "2103087"]
[WhiteElo "1920"]
[BlackElo "2176"]
[Result "0-1"]
[Round "06"]
[TimeControl "180+2"]
[Date "2022.12.20"]
[WhiteClock "0:01:16"]
[BlackClock "0:01:16"]

1. e4 {[%clk 0:02:58]}  c5 {[%clk 0:02:58]} 2. Nc3 {[%clk 0:02:57]}  e6 {[%clk 0:02:58]} 3. f4 {[%clk 0:02:58]}  Nc6 {[%clk 0:02:58]} 4. Nf3 {[%clk 0:02:57]}  d5 {[%clk 0:02:55]} 5. e5 {[%clk 0:02:53]}  Nge7 {[%clk 0:02:52]} 6. g4 {[%clk 0:02:46]}  h5 {[%clk 0:02:51]} 7. g5 {[%clk 0:02:43]}  Nf5 {[%clk 0:02:50]} 8. Bb5 {[%clk 0:02:42]}  Bd7 {[%clk 0:02:49]} 9. Bxc6 {[%clk 0:02:43]}  Bxc6 {[%clk 0:02:49]} 10. O-O {[%clk 0:02:42]}  b5 {[%clk 0:02:46]} 11. d3 {[%clk 0:02:37]}  Qb6 {[%clk 0:02:34]} 12. Ne2 {[%clk 0:02:26]}  d4 {[%clk 0:02:28]} 13. Ng3 {[%clk 0:02:15]}  Nxg3 {[%clk 0:02:20]} 14. hxg3 {[%clk 0:02:15]}  Be7 {[%clk 0:02:08]} 15. Kh2 {[%clk 0:02:06]}  O-O-O {[%clk 0:02:01]} 16. a4 {[%clk 0:02:03]}  b4 {[%clk 0:02:00]} 17. Bd2 {[%clk 0:02:01]}  Kb8 {[%clk 0:01:46]} 18. a5 {[%clk 0:02:01]}  Qb7 {[%clk 0:01:45]} 19. c3 {[%clk 0:01:34]}  dxc3 {[%clk 0:01:43]} 20. bxc3 {[%clk 0:01:33]}  Rxd3 {[%clk 0:01:41]} 21. cxb4 {[%clk 0:01:33]}  Bxf3 {[%clk 0:01:31]} 22. a6 {[%clk 0:01:27]}  Bxd1 {[%clk 0:01:27]} 23. Rfxd1 {[%clk 0:01:16]}  Qf3 {[%clk 0:01:16]} 0-1


[Site "https://www.chess.com"]

[Event "Titled Tuesday Blitz December 20 Early 2022"]
[White "newyorkmouse"]
[Black "vovachesss"]
[WhiteElo "2457"]
[BlackElo "2756"]
[Result "1/2-1/2"]
[Round "06"]
[TimeControl "180+2"]
[Date "2022.12.20"]
[WhiteClock "0:01:58"]
[BlackClock "0:01:58"]

1. d4 {[%clk 0:03:00]}  d5 {[%clk 0:03:00]} 2. c4 {[%clk 0:03:00]}  c6 {[%clk 0:03:01]} 3. Nc3 {[%clk 0:03:00]}  Nf6 {[%clk 0:03:01]} 4. cxd5 {[%clk 0:03:00]}  cxd5 {[%clk 0:03:01]} 5. Bf4 {[%clk 0:03:00]}  Nc6 {[%clk 0:03:02]} 6. e3 {[%clk 0:03:00]}  Bf5 {[%clk 0:03:02]} 7. Nf3 {[%clk 0:02:59]}  e6 {[%clk 0:03:02]} 8. Bb5 {[%clk 0:02:59]}  Bb4 {[%clk 0:02:51]} 9. Qa4 {[%clk 0:02:47]}  O-O {[%clk 0:02:48]} 10. Bxc6 {[%clk 0:02:28]}  Bxc3+ {[%clk 0:02:48]} 11. bxc3 {[%clk 0:02:28]}  bxc6 {[%clk 0:02:48]} 12. O-O {[%clk 0:02:29]}  Ne4 {[%clk 0:02:45]} 13. Qxc6 {[%clk 0:02:13]}  Rc8 {[%clk 0:02:38]} 14. Qa6 {[%clk 0:02:12]}  Qb6 {[%clk 0:01:58]} 15. Qxb6 {[%clk 0:01:58]} 1/2-1/2


[Site "https://www.chess.com"]